bitfinex-derivatives/quotes_ETHF0:USTF0_20250708
["timestamp","ask_amount","ask_price","bid_price","bid_amount"]
[1751992380090,0.77619,2576.4,2576.1,3.09216]
[1751992380285,27.579,2576.4,2576.0,3.2078]
[1751992380484,0.77627,2576.1,2576.0,3.2078]
[1751992380681,1.3289,2576.3,2575.7,3.2078]
[1751992380882,0.77636,2575.8,2575.7,3.2078]
[1751992381087,27.581,2576.1,2575.7,5.02897]
[1751992381287,9.44228019,2576.4,2575.7,5.02897]
[1751992381288,27.588,2576.0,2575.8,1.0448]
[1751992381492,27.588,2576.1,2575.8,1.0448]
[1751992381789,0.77631,2576.0,2575.8,1.0448]
[1751992381992,0.77633,2575.9,2575.7,3.2078]
[1751992382390,0.77631,2576.0,2575.7,3.98418]
[1751992382592,0.77636,2575.8,2575.7,3.2078]
[1751992382890,30.7878,2576.0,2575.4,0.6343]
[1751992383095,0.77637,2575.8,2575.5,0.77644]
[1751992383291,1.3518,2575.9,2575.5,1.82124]
[1751992383488,0.77642,2575.6,2575.5,1.0448]
[1751992383888,28.34739,2575.7,2575.5,1.0448]
[1751992384093,27.571,2575.7,2575.5,1.82124]
[1751992384290,1.94043,2576.5,2575.5,1.82124]
[1751992384291,0.77625,2576.2,2575.6,4.2526]
[1751992384491,27.566,2576.1,2575.9,0.7763]
[1751992384790,27.566,2576.1,2576.0,0.7763]
[1751992384993,28.34227,2576.1,2575.9,0.77631]
[1751992385382,0.7763,2576.0,2575.8,0.77633]
[1751992385588,27.566,2576.1,2575.6,4.2526]
[1751992385793,33.80048019,2576.1,2575.6,1.0448]
[1751992385993,0.77636,2575.8,2575.6,1.82121]
[1751992386189,0.77639,2575.7,2575.6,1.82121]
[1751992386390,0.77634,2575.9,2575.7,0.77639]
[1751992386586,0.77643,2575.6,2575.4,0.77646]
[1751992386786,0.77643,2575.6,2575.4,1.82126]
[1751992386991,0.77648,2575.4,2575.3,3.2078]
[1751992387292,0.77645,2575.5,2575.3,3.2078]
[1751992387491,28.8523,2575.8,2575.3,3.98429]
[1751992387688,28.8523,2575.8,2575.3,3.2078]
[1751992387892,28.8523,2575.8,2575.4,1.82127]
[1751992388090,28.8523,2575.8,2575.4,0.77647]
[1751992388290,0.77645,2575.5,2575.3,3.2078]
[1751992388491,0.77639,2575.7,2575.6,0.77639]
[1751992388692,37.02773019,2575.8,2575.3,3.2078]
[1751992388896,1.94115,2575.5,2575.0,3.2078]
[1751992389091,0.77652,2575.3,2575.2,0.77654]
[1751992389396,1.94068,2576.1,2575.6,0.7764]
[1751992389698,0.77637,2575.8,2575.6,0.7764]
[1751992389895,0.77639,2575.7,2575.6,0.7764]
[1751992390093,1.94082,2575.9,2575.2,5.5182]
[1751992390298,0.7765,2575.4,2575.2,5.02912]
[1751992390495,1.9412,2575.4,2574.8,4.9152]
[1751992390703,0.77659,2575.1,2574.9,0.77663]
[1751992390901,29.52938,2575.2,2574.8,4.9152]
[1751992391198,29.52938,2575.2,2574.3,0.7768]
[1751992391199,0.77677,2574.5,2574.3,0.7768]
[1751992391398,3.2078,2574.9,2574.6,0.77671]
[1751992391597,0.77669,2574.7,2574.5,3.2078]
[1751992391797,0.77669,2574.7,2574.5,0.77673]
[1751992391990,4.6014,2574.9,2574.8,0.77666]
[1751992392196,4.6014,2574.9,2574.5,3.2078]
[1751992392197,30.8168,2574.9,2574.7,0.77668]
[1751992392505,8.17613019,2574.8,2574.3,0.6671]
[1751992392796,0.77678,2574.4,2574.3,0.6671]
[1751992393001,0.77681,2574.3,2574.2,3.2078]
[1751992393200,27.638,2574.4,2573.8,3.8749]
[1751992393396,27.637,2574.4,2573.8,3.8749]
[1751992393591,0.77679,2574.4,2573.9,1.3958]
[1751992393791,3.2078,2574.6,2573.9,1.3958]
[1751992393991,0.77673,2574.6,2574.5,3.2078]
[1751992394303,29.58046,2575.1,2574.5,3.2078]
[1751992394500,29.58046,2575.1,2574.6,1.4713]
[1751992394501,0.77667,2574.8,2574.6,1.4713]
[1751992394701,0.77664,2574.9,2574.7,0.77668]
[1751992395002,0.77664,2574.9,2574.8,0.77666]
[1751992395200,28.42362,2575.0,2574.9,0.77662]
[1751992395400,27.647,2575.0,2574.7,1.0448]
[1751992395697,0.77666,2574.8,2574.7,1.82147]
[1751992395893,0.77666,2574.8,2574.7,1.0448]
[1751992396094,9.44228019,2575.1,2574.6,0.6946]
[1751992396299,0.77665,2574.9,2574.7,1.82147]
[1751992396603,27.644,2575.0,2574.7,0.77667]
[1751992396798,27.644,2575.0,2574.7,1.82147]
[1751992396998,0.77665,2574.9,2574.8,0.77666]
[1751992397400,57.2668,2575.3,2575.1,0.77656]
[1751992397603,55.913,2575.3,2575.2,0.77654]
[1751992397803,55.913,2575.3,2574.8,5.14938]
[1751992397804,83.542,2575.3,2574.9,1.0448]
[1751992398000,0.7766,2575.0,2574.9,1.82142]
[1751992398202,0.77664,2574.9,2574.8,0.77663]
[1751992398504,0.77663,2574.9,2574.8,4.2526]
[1751992398695,0.77663,2574.9,2574.8,1.0448]
[1751992399104,0.77661,2575.0,2574.9,0.77661]
[1751992399795,0.77663,2574.9,2574.8,1.82144]
[1751992400199,0.77662,2575.0,2574.9,0.77662]
[1751992400406,27.621,2575.1,2574.6,0.6946]
[1751992400599,0.77663,2575.0,2574.9,0.77663]
[1751992401100,57.97233,2575.3,2574.9,1.0448]
[1751992401306,28.38454,2575.2,2575.0,1.0448]
[1751992401498,0.77657,2575.1,2575.0,0.77657]
[1751992401695,28.38456,2575.2,2575.1,0.77657]
[1751992401900,0.77657,2575.1,2575.0,0.77658]
[1751992402200,1.94165,2574.8,2574.1,1.0448]
[1751992402401,0.77687,2574.1,2574.0,3.2078]
[1751992402605,0.77696,2573.8,2573.7,1.0376]
[1751992402805,0.77696,2573.8,2573.6,3.2078]
[1751992402806,0.77699,2573.7,2573.6,3.2078]
[1751992403101,6.91338375,2574.0,2573.6,3.2078]
[1751992403302,0.77697,2573.8,2573.6,3.2078]
[1751992403497,29.16852542,2573.9,2573.6,3.2078]
[1751992403498,0.77699,2573.7,2573.6,3.2078]
[1751992404305,27.67,2573.9,2573.6,3.2078]
[1751992404498,0.77698,2573.8,2573.6,3.98482]
[1751992404701,27.659,2573.7,2573.6,3.98482]
[1751992404901,3.64689596,2574.3,2574.0,0.77688]
[1751992405098,29.15711121,2574.2,2573.9,0.77691]
[1751992405304,1.50011121,2574.1,2573.7,0.77697]
[1751992405507,4.25111596,2574.5,2574.0,0.77687]
[1751992405710,29.15349236,2574.4,2573.9,3.2078]
[1751992405905,1.49949236,2574.3,2574.2,3.98462]
[1751992406111,27.65,2574.6,2574.5,0.77674]
[1751992406313,0.77672,2574.6,2574.5,3.98454]
[1751992406505,1.3377,2574.9,2574.6,0.7767]
[1751992406706,29.15499974,2574.8,2574.7,0.77668]
[1751992406906,0.77669,2574.7,2574.6,0.7767]
[1751992407201,3.69189596,2575.2,2574.5,3.2078]
[1751992407406,0.77661,2575.0,2574.9,0.77663]
[1751992407601,1.49943806,2575.0,2574.7,1.0376]
[1751992407811,29.14543806,2574.9,2574.8,0.77666]
[1751992408311,0.77666,2574.8,2574.7,1.81427]
[1751992408612,27.64,2574.9,2574.8,0.77666]
[1751992408810,0.77666,2574.8,2574.7,1.81428]
[1751992409013,0.77666,2574.8,2574.7,1.0376]
[1751992409710,0.77669,2574.7,2574.6,0.77671]
[1751992409908,0.77669,2574.7,2574.6,1.0376]
[1751992410103,29.5816,2574.9,2574.6,1.0376]
[1751992410302,0.77667,2574.8,2574.6,1.81432]
[1751992410510,0.77669,2574.7,2574.6,1.0376]
[1751992410809,0.77669,2574.7,2574.6,1.81432]
[1751992411513,4.535,2575.0,2574.2,3.2078]
[1751992411707,2.27950625,2574.9,2574.3,1.94203]
[1751992412011,29.93052625,2574.8,2574.7,0.77669]
[1751992412207,0.77671,2574.7,2574.6,0.77671]
[1751992412407,0.77675,2574.6,2574.5,0.77674]
[1751992413206,29.59267,2574.8,2574.2,3.2078]
[1751992413408,6.26165321,2574.6,2574.2,3.2078]
[1751992413609,0.77674,2574.6,2574.5,0.77673]
[1751992413811,29.92562499,2574.6,2574.5,0.77673]
[1751992414214,29.14888499,2574.6,2574.3,1.0376]
[1751992414413,1.2718,2574.7,2574.3,2.97961]
[1751992414713,5.51699596,2575.0,2574.5,3.2078]
[1751992414714,27.643,2574.8,2574.5,3.2078]
[1751992414906,2.28088629,2574.7,2574.6,0.77669]
[1751992415108,2.28011042,2574.7,2574.6,0.77669]
[1751992415308,0.77671,2574.7,2574.6,0.77669]
[1751992415510,2.28081701,2574.7,2574.6,1.81429]
[1751992415909,0.77672,2574.6,2574.5,3.98454]
[1751992416111,2.28082701,2574.6,2574.5,0.77674]
[1751992416712,2.28082701,2574.6,2574.5,1.0376]
[1751992417818,0.77675,2574.5,2574.4,0.77676]
[1751992418118,2.28085701,2574.5,2574.4,1.81436]
[1751992418514,1.50410701,2574.5,2574.4,1.81436]
[1751992418713,0.77667,2574.8,2574.7,0.77669]
[1751992418917,29.89569096,2574.8,2574.7,0.77669]
[1751992419113,29.11902096,2574.8,2574.7,1.81429]
[1751992419314,1.51502096,2574.8,2574.7,1.81429]
[1751992419818,1.51502096,2574.8,2574.7,3.87079]
[1751992421210,1.51502096,2574.8,2574.7,2.47719]
[1751992421819,27.594,2575.1,2574.7,1.7005]
[1751992422015,0.77666,2574.8,2574.7,0.6629]
[1751992422226,2.29260221,2574.9,2574.8,0.77666]
[1751992422413,1.51610422,2574.9,2574.8,0.77666]
[1751992422613,1.51610422,2574.9,2574.8,2.07976]
[1751992422820,83.506,2575.3,2575.2,0.77654]
[1751992423021,57.42893753,2575.3,2575.2,0.77654]
[1751992423220,3.82513349,2575.3,2575.2,0.77654]
[1751992423818,2.29244753,2575.3,2575.2,0.77654]
[1751992424521,0.77657,2575.2,2575.1,0.77657]
[1751992424713,2.29250753,2575.2,2575.1,0.77657]
[1751992425113,1.51593753,2575.2,2574.7,1.7005]
[1751992425316,0.77663,2575.0,2574.9,0.7766]
[1751992425519,0.77656,2575.2,2575.1,0.77653]
[1751992425720,28.34456,2575.2,2575.1,1.81413]
[1751992425922,2.29175328,2575.2,2575.1,1.81413]
[1751992426125,2.29175328,2575.2,2575.1,1.0376]
[1751992427014,0.77666,2574.9,2574.8,0.77666]
[1751992427219,0.77666,2574.8,2574.7,0.6629]
[1751992427418,0.77665,2574.9,2574.8,0.77663]
[1751992427822,0.77665,2574.9,2574.8,1.81423]
[1751992428521,0.77665,2574.9,2574.8,1.81426]
[1751992429723,0.77675,2574.6,2574.5,0.77672]
[1751992429924,0.77671,2574.7,2574.6,0.7767]
[1751992430623,0.77668,2574.8,2574.7,0.77666]
[1751992430825,0.7766,2575.1,2575.0,0.77657]
[1751992431026,29.87908811,2575.1,2575.0,0.77657]
[1751992431219,27.588,2575.1,2574.7,1.2705]
[1751992431520,0.77666,2574.8,2574.7,0.77667]
[1751992431725,0.77665,2574.9,2574.8,0.77662]
[1751992431920,0.77669,2574.8,2574.7,0.77666]
[1751992432421,0.77669,2574.7,2574.6,3.98449]
[1751992432621,0.77672,2574.6,2574.5,1.45563]
[1751992433426,0.77672,2574.6,2574.5,2.40633]
[1751992433622,0.77672,2574.6,2574.5,2.40635]
[1751992433921,0.77672,2574.6,2574.5,1.6296]
[1751992434124,3.30433,2575.0,2574.5,1.6296]
[1751992434326,0.77669,2574.7,2574.6,3.2078]
[1751992434922,0.77669,2574.7,2574.6,4.93522]
[1751992435429,0.77669,2574.7,2574.6,4.1585]
[1751992435629,0.77669,2574.7,2574.6,4.93522]
[1751992436929,0.77669,2574.8,2574.7,0.77669]
[1751992437129,27.583,2575.1,2575.0,0.77658]
[1751992437130,0.77661,2575.1,2575.0,0.77658]
[1751992437331,2.29524853,2575.2,2575.1,0.77657]
[1751992437532,2.29512827,2575.2,2575.1,0.9507]
[1751992437727,3.45996827,2575.2,2574.9,4.93511]
[1751992437932,3.45996827,2575.2,2574.9,0.9507]
[1751992437933,0.7766,2575.0,2574.9,0.9507]
[1751992438231,0.77666,2574.8,2574.7,0.9507]
[1751992439136,0.77666,2574.8,2574.7,1.72739]
[1751992439338,0.77672,2574.6,2574.5,3.8867]
[1751992439537,27.589,2574.6,2574.4,0.9507]
[1751992439733,28.36575,2574.6,2574.5,1.72745]
[1751992439934,28.36172,2574.6,2574.5,4.1585]
[1751992440133,28.36172,2574.6,2574.5,0.9507]
[1751992440329,27.585,2574.6,2574.2,5.62512]
[1751992440535,0.77681,2574.3,2574.2,3.8976]
[1751992441033,1.94211,2574.2,2573.9,0.9507]
[1751992441237,0.7769,2574.1,2573.8,3.8475]
[1751992441436,27.581,2574.4,2573.9,0.9507]
[1751992441630,0.77693,2573.9,2573.8,4.62445]
[1751992441834,0.77692,2574.0,2573.8,3.8475]
[1751992442031,30.91347,2574.4,2573.8,3.8475]
[1751992442335,7.45853596,2575.0,2574.1,5.14993]
[1751992442546,0.7767,2574.7,2574.6,0.7767]
[1751992442835,29.11438435,2574.9,2574.5,1.41643]
[1751992442836,1.51838435,2574.8,2574.5,1.41643]
[1751992443032,0.77672,2574.6,2574.5,1.41643]
[1751992443234,3.31908,2574.8,2574.1,3.2078]
[1751992443439,0.77681,2574.4,2574.3,0.7768]
[1751992443836,0.77681,2574.4,2574.3,1.7275]
[1751992444239,0.77677,2574.5,2574.4,0.77675]
[1751992444631,0.77677,2574.5,2574.4,0.9507]
[1751992444839,0.77678,2574.4,2574.3,0.7768]
[1751992445243,0.77678,2574.4,2574.3,1.7275]
[1751992446041,0.77678,2574.4,2574.3,0.9507]
[1751992446242,0.77682,2574.3,2574.2,0.77681]
[1751992446438,0.7768,2574.4,2574.3,0.77678]
[1751992446640,0.77681,2574.3,2574.2,0.77682]
[1751992446944,0.77681,2574.3,2574.2,1.72752]
[1751992447244,28.33969,2574.7,2574.6,0.77672]
[1751992447433,0.77669,2574.7,2574.6,1.72742]
[1751992447638,0.77669,2574.7,2574.6,0.9507]
[1751992447837,0.77675,2574.5,2574.4,3.98455]
[1751992448042,0.77675,2574.5,2574.4,4.93525]
[1751992448345,1.9418,2574.6,2574.1,4.1585]
[1751992448538,0.77683,2574.3,2574.0,5.22102238]
[1751992448746,0.77687,2574.1,2574.0,0.6871]
[1751992448939,0.77687,2574.1,2574.0,1.464]
[1751992449140,0.77687,2574.1,2574.0,2.4147]
[1751992449439,0.77687,2574.1,2574.0,0.6871]
[1751992449643,5.14979,2574.4,2573.8,8.51865238]
[1751992449644,0.77693,2573.9,2573.8,8.51865238]
[1751992449939,0.77691,2574.0,2573.9,0.77689]
[1751992450142,0.77689,2574.1,2574.0,0.77686]
[1751992450340,0.77689,2574.1,2574.0,1.72756]
[1751992451534,0.77696,2573.8,2573.7,2.36856]
[1751992452345,0.77692,2574.0,2573.9,0.77693]
[1751992452648,0.77692,2574.0,2573.9,1.72763]
[1751992453347,0.77693,2573.9,2573.8,3.98473]
[1751992453550,0.77693,2573.9,2573.8,4.93543]
[1751992454144,0.77687,2574.2,2574.1,0.77684]
[1751992454348,0.77687,2574.2,2574.1,3.98464]
[1751992454541,2.30919596,2574.9,2574.3,1.94195]
[1751992454739,2.28747254,2574.8,2574.7,0.77667]
[1751992454942,2.28747254,2574.8,2574.7,1.72737]
[1751992455847,2.28747254,2574.8,2574.7,0.9507]
[1751992456046,0.77675,2574.5,2574.4,2.39076]
[1751992457042,27.507,2574.9,2574.4,9.17950452]
[1751992457043,27.489,2574.9,2574.4,9.17950452]
[1751992457246,0.7767,2574.8,2574.7,0.77665]
[1751992457445,2.28795252,2574.8,2574.7,1.72735]
[1751992457646,1.51125252,2574.8,2574.7,1.72735]
[1751992457844,2.28790252,2574.8,2574.7,1.72735]
[1751992458047,2.28790252,2574.8,2574.7,0.9507]
[1751992458351,0.77671,2574.7,2574.6,0.77669]
[1751992459146,1.94172,2574.7,2574.4,1.614]
[1751992459447,0.77675,2574.5,2574.4,2.39078]
[1751992459954,0.77673,2574.6,2574.5,0.77672]
[1751992460242,0.77675,2574.5,2574.4,1.614]
[1751992460445,0.77675,2574.5,2574.4,2.39078]
[1751992460746,28.22576,2574.5,2574.4,0.77676]
[1751992461252,0.77678,2574.4,2574.3,3.98458]
[1751992461448,28.22576,2574.5,2574.4,0.77678]
[1751992462345,0.77677,2574.4,2574.3,1.72749]
[1751992462550,0.77677,2574.4,2574.3,4.93529]
[1751992463146,0.77679,2574.4,2574.3,1.0062]
[1751992463543,0.77679,2574.4,2574.3,1.78297]
[1751992463745,0.77684,2574.3,2574.2,0.77681]
[1751992463942,0.77684,2574.2,2574.1,1.42645]
[1751992464148,0.77683,2574.3,2574.2,0.7768]
[1751992464650,0.77683,2574.3,2574.2,1.783]
[1751992464853,0.77683,2574.3,2574.2,2.4298]
[1751992465456,0.77683,2574.3,2574.2,0.6468]
[1751992465952,0.77683,2574.3,2574.2,1.653]
[1751992466143,0.77683,2574.3,2574.2,0.6468]
[1751992467754,1.94198,2574.4,2574.0,3.2078]
[1751992467952,0.77687,2574.1,2574.0,3.2078]
[1751992468152,0.77693,2573.9,2573.8,1.0062]
[1751992468451,0.77693,2573.9,2573.8,0.6468]
[1751992468853,0.77699,2573.7,2573.6,3.2078]
[1751992469049,28.20799,2573.7,2573.6,3.8546]
[1751992471855,28.20799,2573.7,2573.6,3.2078]
[1751992472155,0.7771,2573.4,2573.3,4.214]
[1751992472467,0.7771,2573.4,2573.3,4.8608]
[1751992472655,28.1761,2573.4,2573.3,3.8546]
[1751992473156,28.1761,2573.4,2573.3,5.63791]
[1751992473551,28.1761,2573.4,2573.3,4.8608]
[1751992473755,28.1761,2573.4,2573.3,5.63791]
[1751992474058,28.1761,2573.4,2573.3,4.8608]
[1751992475058,28.1761,2573.4,2573.3,5.63791]
[1751992475358,28.1761,2573.4,2573.3,4.8608]
[1751992475558,28.1761,2573.4,2573.3,5.63791]
[1751992475961,27.399,2573.4,2573.3,5.63791]
[1751992476659,28.17608,2573.4,2573.3,3.8546]
[1751992479457,29.44458,2573.4,2573.3,3.8546]
[1751992480762,29.44458,2573.4,2573.3,4.63171]
[1751992480960,0.77707,2573.5,2573.4,0.77705]
[1751992481162,28.12207,2573.5,2573.4,1.42385]
[1751992481361,28.12207,2573.5,2573.4,2.43005]
[1751992481557,55.963,2574.0,2573.5,1.94262]
[1751992481758,3.66899596,2574.6,2574.1,1.94217]
[1751992481964,28.86080901,2574.5,2574.4,3.98458]
[1751992482358,29.63755901,2574.5,2574.4,0.6468]
[1751992482664,0.77681,2574.3,2574.2,0.6685]
[1751992482966,29.64361901,2574.3,2574.2,1.3153]
[1751992483165,31.95281497,2574.3,2574.2,1.3153]
[1751992483365,29.64361901,2574.3,2574.2,1.3153]
[1751992483566,31.95281497,2574.3,2574.2,1.3153]
[1751992483767,33.32261497,2574.3,2574.2,1.3153]
[1751992484663,0.77693,2573.9,2573.8,3.2078]
[1751992484965,28.12093,2573.9,2573.8,0.6468]
[1751992485667,28.12093,2573.9,2573.8,1.653]
[1751992487667,28.12093,2573.9,2573.7,3.8946]
[1751992487871,0.77696,2573.8,2573.7,4.67159]
[1751992488266,0.77696,2573.8,2573.7,5.31839]
[1751992488471,0.77696,2573.8,2573.7,6.32459]
[1751992488872,0.77696,2573.8,2573.7,5.5476]
[1751992489371,0.77696,2573.8,2573.7,6.32459]
[1751992489571,27.342,2573.8,2573.7,6.32459]
[1751992489872,0.77686,2574.2,2574.1,0.77684]
[1751992490067,0.77686,2574.2,2574.1,4.63144]
[1751992490370,28.11886,2574.2,2574.1,5.63764]
[1751992491273,28.11886,2574.2,2574.1,1.653]
[1751992492671,28.11886,2574.2,2574.1,0.6468]
[1751992493467,28.11886,2574.2,2574.1,1.42367]
[1751992493764,28.11786,2574.2,2574.1,0.6468]
[1751992494672,28.11786,2574.2,2574.1,1.42367]
[1751992494874,0.77686,2574.2,2574.1,2.40677]
[1751992495172,28.11686,2574.2,2574.1,2.40677]
[1751992495368,28.11686,2574.2,2574.1,1.6299]
[1751992495769,28.11686,2574.2,2574.1,0.6468]
[1751992496171,28.11686,2574.2,2573.8,3.2078]
[1751992496172,1.94219,2574.1,2573.8,3.2078]
[1751992496369,0.77693,2573.9,2573.8,3.9007]
[1751992496569,0.77693,2573.9,2573.8,4.8838]
[1751992496873,28.11693,2573.9,2573.8,0.6929]
[1751992497574,0.77702,2573.6,2573.5,4.1909]
[1751992497880,28.11602,2573.6,2573.5,4.5802]
[1751992498568,28.11602,2573.6,2573.5,5.5633]
[1751992498767,28.11602,2573.6,2573.5,6.34035]
[1751992499376,28.11602,2573.6,2573.5,5.5633]
[1751992499768,28.11602,2573.6,2573.5,1.3724]
[1751992500076,0.77711,2573.3,2573.2,4.1909]
[1751992500274,28.11611,2573.3,2573.2,4.8838]
[1751992500470,28.11611,2573.3,2573.2,3.9007]
[1751992500676,0.7772,2573.0,2572.9,3.2078]
[1751992500875,28.1162,2573.0,2572.9,3.2078]
[1751992501171,28.1162,2573.0,2572.9,3.9007]
[1751992501775,29.3835,2573.0,2572.9,3.9007]
[1751992502179,0.77726,2572.8,2572.7,0.6515]
[1751992502376,28.11726,2572.8,2572.7,2.3275]
[1751992502578,28.11726,2572.8,2572.7,1.3444]
[1751992502776,28.11726,2572.8,2572.7,2.3275]
[1751992503082,28.11726,2572.8,2572.7,1.3444]
[1751992503281,0.77732,2572.6,2572.5,4.1909]
[1751992503486,55.45632,2572.6,2572.5,4.8838]
[1751992503685,54.679,2572.6,2572.5,5.66115]
[1751992504585,55.45632,2572.6,2572.5,4.8838]
[1751992505085,55.45632,2572.6,2572.5,3.9007]
[1751992505282,55.45632,2572.6,2572.5,4.8838]
[1751992505476,55.45632,2572.6,2572.5,1.676]
[1751992506080,0.77741,2572.3,2572.2,0.6884]
[1751992506284,0.7775,2572.0,2571.9,3.2078]
[1751992506488,55.4635,2572.0,2571.9,3.9007]
[1751992506782,3.2078,2572.6,2571.9,3.9007]
[1751992506991,0.77725,2572.9,2572.7,0.77727]
[1751992507286,5.52834768,2573.0,2572.7,0.77727]
[1751992507287,28.86910178,2572.8,2572.7,0.77727]
[1751992507487,27.345,2572.8,2572.6,0.7773]
[1751992507784,27.345,2572.8,2572.2,3.2078]
[1751992507982,27.345,2572.8,2571.9,3.2078]
[1751992507983,1.94323,2572.7,2571.9,3.2078]
[1751992508183,0.7775,2572.0,2571.9,3.2078]
[1751992508387,28.1225,2572.0,2571.9,4.8838]
[1751992508788,28.1225,2572.0,2571.9,1.676]
[1751992509285,0.77762,2571.6,2571.5,3.2078]
[1751992509487,28.12262,2571.6,2571.5,3.2078]
[1751992509880,27.345,2571.6,2571.5,4.96855]
[1751992510082,28.12262,2571.6,2571.5,0.9831]
[1751992510289,28.12262,2571.6,2571.2,3.2078]
[1751992510290,0.77771,2571.3,2571.2,3.2078]
[1751992510483,28.12671,2571.3,2571.2,3.2078]
[1751992510985,27.349,2571.3,2571.2,3.98553]
[1751992511486,27.349,2571.3,2571.2,4.96864]
[1751992511683,0.77763,2571.6,2571.2,4.1909]
[1751992511887,0.77763,2571.6,2571.5,3.2078]
[1751992512083,0.77768,2571.4,2571.3,0.9831]
[1751992512284,27.349,2571.4,2571.1,3.2078]
[1751992512586,0.77774,2571.2,2571.1,3.2078]
[1751992512984,0.77774,2571.2,2571.1,3.98557]
[1751992513180,0.77774,2571.2,2571.1,3.2078]
[1751992513489,27.355,2571.2,2571.1,4.1909]
[1751992513687,27.355,2571.2,2570.8,4.1909]
[1751992513884,0.77783,2570.9,2570.8,4.1909]
[1751992514086,28.13183,2570.9,2570.8,3.2078]
[1751992514284,1.3253,2571.1,2570.8,4.1909]
[1751992514590,0.77783,2570.9,2570.8,4.1909]
[1751992514989,0.77783,2570.9,2570.8,3.2078]
[1751992515191,27.353,2570.9,2570.8,1.76096]
[1751992515587,40.8,2571.4,2570.8,0.9831]
[1751992515894,55.995,2571.5,2571.1,3.2078]
[1751992516083,27.364,2571.5,2571.3,0.77771]
[1751992516284,27.364,2571.5,2571.4,3.98548]
[1751992516486,27.364,2571.5,2571.4,4.96858]
[1751992516887,28.14165,2571.5,2571.4,0.9831]
[1751992517086,28.14165,2571.5,2571.1,0.9831]
[1751992517087,29.30814,2571.5,2571.1,0.9831]
[1751992517290,29.30814,2571.5,2571.0,0.77779]
[1751992517291,0.77777,2571.1,2571.0,0.77779]
[1751992517486,0.77772,2571.3,2571.0,0.9831]
[1751992517686,0.77772,2571.3,2571.2,3.2078]
[1751992517896,1.2967,2571.7,2571.2,4.1909]
[1751992518084,32.98957452,2571.6,2571.2,3.2078]
[1751992518290,32.98957452,2571.6,2570.8,4.4931]
[1751992518291,0.77783,2570.9,2570.8,4.4931]
[1751992518490,0.77783,2570.9,2570.8,4.1909]
[1751992519193,28.14381,2571.0,2570.9,0.77783]
[1751992519394,27.366,2571.0,2570.9,0.77783]
[1751992519687,1.944,2571.7,2570.9,0.9831]
[1751992519887,36.28743452,2571.6,2571.0,1.46678]
[1751992520093,0.77777,2571.1,2571.0,1.46678]
[1751992520293,1.3268,2571.6,2571.0,1.6721]
[1751992520496,0.77769,2571.4,2571.3,3.9855]
[1751992520696,0.77768,2571.4,2571.3,3.2078]
[1751992520896,0.77768,2571.4,2571.3,3.98551]
[1751992521198,28.16568,2571.4,2571.3,3.98551]
[1751992521398,0.77776,2571.2,2571.0,4.67457]
[1751992521595,28.16277,2571.1,2571.0,4.67457]
[1751992521794,27.382,2571.1,2571.0,4.67457]
[1751992521994,28.15977,2571.1,2571.0,4.67457]
[1751992522199,28.15977,2571.1,2571.0,3.8968]
[1751992522600,0.77783,2570.9,2570.8,0.9831]
[1751992523099,6.94077452,2571.0,2570.6,0.648]
[1751992523297,0.77789,2570.7,2570.6,0.648]
[1751992523503,27.382,2570.7,2570.6,1.42592]
[1751992524002,28.15989,2570.7,2570.6,1.42592]
[1751992524198,28.15989,2570.7,2570.6,0.648]
[1751992525409,0.77798,2570.4,2570.3,0.9696]
[1751992525611,6.46963,2570.9,2570.3,0.9696]
[1751992525612,3.2078,2570.9,2570.3,0.9696]
[1751992525905,27.373,2570.8,2570.4,3.2078]
[1751992526107,56.019,2571.2,2570.5,1.94489]
[1751992526310,28.16677,2571.1,2571.0,0.77779]
[1751992526511,27.389,2571.1,2571.0,0.77779]
[1751992526711,27.389,2571.1,2571.0,1.74739]
[1751992526908,56.019,2571.2,2571.1,0.77777]
[1751992527100,0.77767,2571.5,2571.4,0.77768]
[1751992527306,0.77773,2571.3,2571.2,0.6931]
[1751992528103,1.94394,2571.8,2571.2,1.6627]
[1751992528301,0.77771,2571.3,2571.2,1.6627]
[1751992528509,28.17471,2571.3,2571.2,1.6627]
[1751992528711,27.397,2571.3,2571.2,2.44044]
[1751992529110,0.77767,2571.5,2571.4,0.77768]
[1751992529312,28.19067,2571.5,2571.4,0.9696]
[1751992529510,0.77771,2571.3,2571.2,0.6931]
[1751992530008,29.35715,2571.5,2571.1,3.2078]
[1751992530212,0.7778,2571.0,2570.9,1.6032]
[1751992530412,28.1958,2571.0,2570.9,1.6032]
[1751992532408,28.1958,2571.0,2570.9,2.2523]
[1751992532610,27.418,2571.0,2570.9,3.03013]
[1751992532915,28.1958,2571.0,2570.9,2.2523]
[1751992533310,28.1958,2571.0,2570.9,1.2827]
[1751992533510,0.77783,2570.9,2570.8,3.2078]
[1751992533712,0.77783,2570.9,2570.8,3.8569]
[1751992534417,1.2917,2570.9,2570.6,0.77792]
[1751992534610,1.2917,2570.9,2570.6,0.9696]
[1751992534811,28.16787,2570.8,2570.7,1.74748]
[1751992535011,27.39,2570.8,2570.4,4.8488]
[1751992535216,0.77795,2570.5,2570.4,5.62677]
[1751992535418,0.77795,2570.5,2570.4,4.8488]
[1751992535912,28.16695,2570.5,2570.4,3.2078]
[1751992536109,0.77804,2570.2,2570.1,0.9696]
[1751992536309,0.77804,2570.2,2569.5,4.53392238]